[Event "*** SCC Grand Prix: Titled Tuesday Blitz"]
[Site "Chess.com"]
[Date "2020.06.02"]
[Round "5"]
[White "c63_amg"]
[Black "mohssenbinaddi"]
[Result "1-0"]
[WhiteElo "2689"]
[BlackElo "2073"]
[TimeControl "180+1"]
[EndTime "10:54:08 PDT"]
[Termination "c63_amg won by resignation"]

1. e4 {[%clk 0:03:00.9]} 1... c6 {[%clk 0:01:36.6]} 2. d4 {[%clk 0:02:58.5]}
2... d5 {[%clk 0:01:36.7]} 3. e5 {[%clk 0:02:59.1]} 3... Bf5 {[%clk 0:01:36.4]}
4. h4 {[%clk 0:02:59.4]} 4... h5 {[%clk 0:01:35.6]} 5. Bd3 {[%clk 0:02:59.4]}
5... Bxd3 {[%clk 0:01:34.9]} 6. Qxd3 {[%clk 0:03:00.3]} 6... Qb6 {[%clk
0:01:34]} 7. e6 {[%clk 0:02:56]} 7... Nf6 {[%clk 0:01:31.8]} 8. exf7+ {[%clk
0:02:54.5]} 8... Kxf7 {[%clk 0:01:31.5]} 9. Nf3 {[%clk 0:02:55]} 9... Ne4 {[%clk
0:01:18.9]} 10. Nbd2 {[%clk 0:02:41.7]} 10... Rh6 {[%clk 0:01:10.9]} 11. Nxe4
{[%clk 0:02:38.6]} 11... dxe4 {[%clk 0:01:10.4]} 12. Qxe4 {[%clk 0:02:36.1]}
12... Re6 {[%clk 0:01:09.5]} 1-0

[Event "*** SCC Grand Prix: Titled Tuesday Blitz"]
[Site "Chess.com"]
[Date "2020.06.02"]
[Round "5"]
[White "RaunakSadhwani2005"]
[Black "xamax2000"]
[Result "1-0"]
[WhiteElo "2884"]
[BlackElo "2641"]
[TimeControl "180+1"]
[EndTime "10:54:59 PDT"]
[Termination "RaunakSadhwani2005 won by resignation"]

1. e4 {[%clk 0:03:00.9]} 1... c5 {[%clk 0:02:54.3]} 2. Nc3 {[%clk 0:03:00.1]}
2... d6 {[%clk 0:02:54.1]} 3. d4 {[%clk 0:03:00.1]} 3... cxd4 {[%clk 0:02:55]}
4. Qxd4 {[%clk 0:03:00.8]} 4... Nc6 {[%clk 0:02:55]} 5. Qd2 {[%clk 0:03:01.3]}
5... g6 {[%clk 0:02:55.6]} 6. b3 {[%clk 0:03:01.7]} 6... Bh6 {[%clk 0:02:56.3]}
7. f4 {[%clk 0:03:02.2]} 7... f5 {[%clk 0:02:57]} 8. Bb2 {[%clk 0:03:00.3]} 8...
Nf6 {[%clk 0:02:56.4]} 9. Bd3 {[%clk 0:03:00.6]} 9... Rf8 {[%clk 0:02:55.1]} 10.
Nge2 {[%clk 0:02:59.8]} 10... Qa5 {[%clk 0:02:49.8]} 11. exf5 {[%clk 0:02:51.7]}
11... Bxf5 {[%clk 0:02:47.5]} 12. Bxf5 {[%clk 0:02:51.4]} 12... gxf5 {[%clk
0:02:48.4]} 13. O-O-O {[%clk 0:02:50.3]} 13... Rc8 {[%clk 0:02:46.8]} 14. Kb1
{[%clk 0:02:49]} 14... Bg7 {[%clk 0:02:38]} 15. Rhe1 {[%clk 0:02:44.4]} 15...
Nb4 {[%clk 0:01:27.2]} 16. a3 {[%clk 0:02:36.7]} 16... Ne4 {[%clk 0:01:09.8]}
17. Nxe4 {[%clk 0:02:25.2]} 17... Rxc2 {[%clk 0:00:59.8]} 18. Nxd6+ {[%clk
0:02:21.4]} 1-0

[Event "*** SCC Grand Prix: Titled Tuesday Blitz"]
[Site "Chess.com"]
[Date "2020.06.02"]
[Round "5"]
[White "lelajavakhishvili"]
[Black "LileKoridze"]
[Result "1-0"]
[WhiteElo "2496"]
[BlackElo "2309"]
[TimeControl "180+1"]
[EndTime "10:55:01 PDT"]
[Termination "lelajavakhishvili won by resignation"]

1. Nf3 {[%clk 0:03:00.9]} 1... Nf6 {[%clk 0:02:57.9]} 2. g3 {[%clk 0:03:00.9]}
2... d5 {[%clk 0:02:57.8]} 3. Bg2 {[%clk 0:03:00.7]} 3... c5 {[%clk 0:02:57.2]}
4. O-O {[%clk 0:03:00.5]} 4... Nc6 {[%clk 0:02:56.4]} 5. c4 {[%clk 0:02:58.5]}
5... d4 {[%clk 0:02:55.2]} 6. e3 {[%clk 0:02:58.5]} 6... g6 {[%clk 0:02:55.2]}
7. exd4 {[%clk 0:02:58.3]} 7... cxd4 {[%clk 0:02:54.9]} 8. d3 {[%clk 0:02:57.8]}
8... Bg7 {[%clk 0:02:55.2]} 9. a3 {[%clk 0:02:55.3]} 9... O-O {[%clk 0:02:49.4]}
10. b4 {[%clk 0:02:54]} 10... Nd7 {[%clk 0:02:48.3]} 11. b5 {[%clk 0:02:47.4]}
11... Ncb8 {[%clk 0:02:47.1]} 12. Nbd2 {[%clk 0:02:42.5]} 12... a6 {[%clk
0:02:46.6]} 13. Nb3 {[%clk 0:02:36.2]} 13... axb5 {[%clk 0:02:43.8]} 14. cxb5
{[%clk 0:02:35.9]} 14... Qb6 {[%clk 0:02:42.7]} 15. a4 {[%clk 0:02:33.9]} 15...
e5 {[%clk 0:02:42.2]} 16. Nfd2 {[%clk 0:02:28.7]} 16... Nc5 {[%clk 0:02:07.5]}
17. Nxc5 {[%clk 0:02:11.9]} 17... Qxc5 {[%clk 0:02:07.5]} 18. Ba3 {[%clk
0:02:12]} 18... Qc7 {[%clk 0:02:07.1]} 19. Bxf8 {[%clk 0:02:10.1]} 19... Bxf8
{[%clk 0:02:07.1]} 20. Qc1 {[%clk 0:02:06.4]} 20... Qd8 {[%clk 0:02:05.1]} 21.
a5 {[%clk 0:01:50.6]} 21... Be6 {[%clk 0:01:59.6]} 22. a6 {[%clk 0:01:48.5]}
22... Bd5 {[%clk 0:01:53.4]} 23. Bxd5 {[%clk 0:01:42.1]} 23... Qxd5 {[%clk
0:01:52.8]} 24. Qc4 {[%clk 0:01:38.2]} 24... Qd7 {[%clk 0:01:52.4]} 25. a7
{[%clk 0:01:33.4]} 1-0

[Event "*** SCC Grand Prix: Titled Tuesday Blitz"]
[Site "Chess.com"]
[Date "2020.06.02"]
[Round "5"]
[White "isainz"]
[Black "Cecile-Haussernot"]
[Result "0-1"]
[WhiteElo "2138"]
[BlackElo "2351"]
[TimeControl "180+1"]
[EndTime "10:55:01 PDT"]
[Termination "Cecile-Haussernot won by resignation"]

1. e4 {[%clk 0:03:00.9]} 1... c5 {[%clk 0:02:46.7]} 2. Nf3 {[%clk 0:03:00.5]}
2... d6 {[%clk 0:02:46.9]} 3. d4 {[%clk 0:02:59.1]} 3... cxd4 {[%clk 0:02:47.8]}
4. Qxd4 {[%clk 0:02:59.4]} 4... Nf6 {[%clk 0:02:48.7]} 5. c4 {[%clk 0:02:57.3]}
5... Nc6 {[%clk 0:02:47.9]} 6. Qe3 {[%clk 0:02:57.1]} 6... g6 {[%clk 0:02:48.8]}
7. Nc3 {[%clk 0:02:55.7]} 7... Bg7 {[%clk 0:02:49.7]} 8. h3 {[%clk 0:02:55.7]}
8... O-O {[%clk 0:02:50]} 9. Be2 {[%clk 0:02:55.3]} 9... Nb4 {[%clk 0:02:48.5]}
10. Qd2 {[%clk 0:02:30.5]} 10... Be6 {[%clk 0:02:44.1]} 11. O-O {[%clk
0:02:20.3]} 11... Rc8 {[%clk 0:02:43.9]} 12. a3 {[%clk 0:02:04.6]} 12... Na6
{[%clk 0:02:43.2]} 13. Nd5 {[%clk 0:01:50]} 13... Nxe4 {[%clk 0:02:41.4]} 14.
Qe3 {[%clk 0:01:40.5]} 14... Nf6 {[%clk 0:02:40.5]} 15. Nxf6+ {[%clk 0:01:22.9]}
15... Bxf6 {[%clk 0:02:41.4]} 16. Qxa7 {[%clk 0:01:23]} 16... Nc5 {[%clk
0:02:37.2]} 0-1

[Event "*** SCC Grand Prix: Titled Tuesday Blitz"]
[Site "Chess.com"]
[Date "2020.06.02"]
[Round "5"]
[White "pedro_nascimento85"]
[Black "Sjakkerntobi"]
[Result "1-0"]
[WhiteElo "1945"]
[BlackElo "2258"]
[TimeControl "180+1"]
[EndTime "10:55:14 PDT"]
[Termination "pedro_nascimento85 won by resignation"]

1. d4 {[%clk 0:03:00.9]} 1... Nf6 {[%clk 0:02:59.7]} 2. c4 {[%clk 0:02:59.8]}
2... e6 {[%clk 0:02:59.7]} 3. Nc3 {[%clk 0:02:59.3]} 3... Bb4 {[%clk 0:03:00.3]}
4. e3 {[%clk 0:02:58]} 4... O-O {[%clk 0:03:00.2]} 5. Ne2 {[%clk 0:02:57.8]}
5... c5 {[%clk 0:03:00.1]} 6. a3 {[%clk 0:02:45.6]} 6... Bxc3+ {[%clk
0:02:55.4]} 7. Nxc3 {[%clk 0:02:44.4]} 7... Nc6 {[%clk 0:02:56.3]} 8. d5 {[%clk
0:02:42.1]} 8... Ne5 {[%clk 0:02:51.7]} 9. Be2 {[%clk 0:02:39.3]} 9... exd5
{[%clk 0:02:51.3]} 10. cxd5 {[%clk 0:02:38.7]} 10... d6 {[%clk 0:02:52.2]} 11.
O-O {[%clk 0:02:38]} 11... a6 {[%clk 0:02:40.6]} 12. a4 {[%clk 0:02:34.9]} 12...
Bg4 {[%clk 0:02:39.4]} 13. Bxg4 {[%clk 0:02:25.4]} 13... Nexg4 {[%clk
0:02:30.3]} 14. h3 {[%clk 0:02:25.4]} 14... Ne5 {[%clk 0:02:28.7]} 15. e4 {[%clk
0:02:23.5]} 15... Rb8 {[%clk 0:02:15.7]} 16. Bg5 {[%clk 0:02:17.2]} 16... h6
{[%clk 0:02:15.1]} 17. Bh4 {[%clk 0:02:16.7]} 17... g5 {[%clk 0:02:14.8]} 18.
Bg3 {[%clk 0:02:16]} 18... Ng6 {[%clk 0:02:14.9]} 19. f4 {[%clk 0:02:11.8]}
19... gxf4 {[%clk 0:02:08.6]} 20. Bxf4 {[%clk 0:02:11.8]} 20... Kh7 {[%clk
0:02:00.8]} 21. Qd2 {[%clk 0:02:06.4]} 21... Nxf4 {[%clk 0:02:00.1]} 22. Qxf4
{[%clk 0:02:06.5]} 22... Ne8 {[%clk 0:01:44.1]} 23. Qf5+ {[%clk 0:02:04.9]}
23... Kh8 {[%clk 0:01:42.1]} 24. Rf4 {[%clk 0:02:00.7]} 24... Qg5 {[%clk
0:01:39]} 25. Raf1 {[%clk 0:01:48.7]} 25... Kg7 {[%clk 0:01:26.6]} 26. Rg4
{[%clk 0:01:45.3]} 1-0

[Event "*** SCC Grand Prix: Titled Tuesday Blitz"]
[Site "Chess.com"]
[Date "2020.06.02"]
[Round "5"]
[White "davigator"]
[Black "Storchnoi"]
[Result "1-0"]
[WhiteElo "2315"]
[BlackElo "2037"]
[TimeControl "180+1"]
[EndTime "10:55:21 PDT"]
[Termination "davigator won by resignation"]

1. e4 {[%clk 0:03:00.9]} 1... c5 {[%clk 0:02:59.5]} 2. Nf3 {[%clk 0:03:00.1]}
2... Nc6 {[%clk 0:02:58.6]} 3. d4 {[%clk 0:03:00.4]} 3... cxd4 {[%clk
0:02:58.5]} 4. Nxd4 {[%clk 0:03:00.7]} 4... Nf6 {[%clk 0:02:58.8]} 5. Nc3 {[%clk
0:03:00.5]} 5... d6 {[%clk 0:02:59.2]} 6. Bg5 {[%clk 0:02:59.3]} 6... e6 {[%clk
0:02:58.7]} 7. f4 {[%clk 0:02:58.7]} 7... Qb6 {[%clk 0:02:57.5]} 8. Nb3 {[%clk
0:02:55.6]} 8... Qe3+ {[%clk 0:02:57]} 9. Qe2 {[%clk 0:02:55.3]} 9... Ng4 {[%clk
0:02:57.1]} 10. Nd1 {[%clk 0:02:44.2]} 10... Qxe2+ {[%clk 0:02:35.2]} 11. Bxe2
{[%clk 0:02:43.5]} 11... h6 {[%clk 0:02:34.9]} 12. Bh4 {[%clk 0:02:42.7]} 12...
Nf6 {[%clk 0:02:20.9]} 13. Bxf6 {[%clk 0:02:41.7]} 13... gxf6 {[%clk 0:02:20.2]}
14. Nc3 {[%clk 0:02:42.6]} 14... a6 {[%clk 0:02:17.8]} 15. Bh5 {[%clk
0:02:40.4]} 15... Bd7 {[%clk 0:02:16.6]} 16. O-O-O {[%clk 0:02:39.8]} 16...
O-O-O {[%clk 0:02:14.2]} 17. Bxf7 {[%clk 0:02:38]} 17... Rh7 {[%clk 0:02:06]}
18. Bg6 {[%clk 0:02:36.1]} 18... Rg7 {[%clk 0:02:06]} 19. f5 {[%clk 0:02:35.8]}
19... Ne5 {[%clk 0:01:58.6]} 20. fxe6 {[%clk 0:02:34.9]} 20... Bxe6 {[%clk
0:01:58.6]} 21. Bf5 {[%clk 0:02:34]} 21... Bxf5 {[%clk 0:01:57.8]} 22. exf5
{[%clk 0:02:33.5]} 22... Rxg2 {[%clk 0:01:57.8]} 23. Nd5 {[%clk 0:02:32.7]}
23... Rf2 {[%clk 0:01:44.1]} 24. Rdf1 {[%clk 0:02:30.4]} 24... Rxf1+ {[%clk
0:01:41.7]} 25. Rxf1 {[%clk 0:02:29.6]} 25... Nd7 {[%clk 0:01:34.6]} 26. Nd4
{[%clk 0:02:28.3]} 26... Re8 {[%clk 0:01:28.6]} 27. Ne6 {[%clk 0:02:27.6]} 27...
Be7 {[%clk 0:01:23.6]} 28. Rg1 {[%clk 0:02:27]} 28... Nc5 {[%clk 0:01:07.8]} 29.
Ng7 {[%clk 0:02:08.9]} 29... Rg8 {[%clk 0:01:05]} 30. Nxe7+ {[%clk 0:02:08.1]}
1-0

[Event "*** SCC Grand Prix: Titled Tuesday Blitz"]
[Site "Chess.com"]
[Date "2020.06.02"]
[Round "5"]
[White "neurisdr"]
[Black "AverageRecord"]
[Result "0-1"]
[WhiteElo "2767"]
[BlackElo "3014"]
[TimeControl "180+1"]
[EndTime "10:55:38 PDT"]
[Termination "AverageRecord won by resignation"]

1. e4 {[%clk 0:03:00.9]} 1... e5 {[%clk 0:02:57.4]} 2. Nf3 {[%clk 0:03:00.6]}
2... Nf6 {[%clk 0:02:58.1]} 3. Nc3 {[%clk 0:02:58.9]} 3... Nc6 {[%clk
0:02:57.7]} 4. Be2 {[%clk 0:02:59]} 4... d5 {[%clk 0:02:55.6]} 5. exd5 {[%clk
0:02:58.1]} 5... Nxd5 {[%clk 0:02:56.5]} 6. O-O {[%clk 0:02:58.3]} 6... Nxc3
{[%clk 0:02:54.7]} 7. bxc3 {[%clk 0:02:57.2]} 7... Bd6 {[%clk 0:02:55.3]} 8. d4
{[%clk 0:02:56.5]} 8... O-O {[%clk 0:02:54.7]} 9. h3 {[%clk 0:02:54.8]} 9... h6
{[%clk 0:02:54]} 10. Bd3 {[%clk 0:02:53.8]} 10... exd4 {[%clk 0:02:49.5]} 11.
cxd4 {[%clk 0:02:53.2]} 11... Qf6 {[%clk 0:02:50.1]} 12. c3 {[%clk 0:02:52.2]}
12... Bf5 {[%clk 0:02:48.9]} 13. Rb1 {[%clk 0:02:52]} 13... b6 {[%clk
0:02:48.4]} 14. Rb5 {[%clk 0:02:51.6]} 14... Bxd3 {[%clk 0:02:40.3]} 15. Qxd3
{[%clk 0:02:50.6]} 15... Rfe8 {[%clk 0:02:40.7]} 16. Be3 {[%clk 0:02:50]} 16...
Rad8 {[%clk 0:02:38.9]} 17. Nd2 {[%clk 0:02:49.4]} 17... Ne7 {[%clk 0:02:24.3]}
18. Rd1 {[%clk 0:02:40.8]} 18... c6 {[%clk 0:02:23.9]} 19. Ne4 {[%clk
0:02:34.8]} 19... Qg6 {[%clk 0:02:23.5]} 20. Rb2 {[%clk 0:02:32.2]} 20... Bc7
{[%clk 0:02:15.7]} 21. Re2 {[%clk 0:02:13.9]} 21... f5 {[%clk 0:02:08.1]} 22.
Ng3 {[%clk 0:01:15.1]} 22... f4 {[%clk 0:02:07.6]} 23. Bxf4 {[%clk 0:01:11.7]}
23... Qxd3 {[%clk 0:01:54]} 24. Rxd3 {[%clk 0:01:10.5]} 24... Bxf4 {[%clk
0:01:54.9]} 25. Nh5 {[%clk 0:01:06.1]} 25... Nd5 {[%clk 0:01:54.3]} 0-1

[Event "*** SCC Grand Prix: Titled Tuesday Blitz"]
[Site "Chess.com"]
[Date "2020.06.02"]
[Round "5"]
[White "gemarin"]
[Black "konradrutkowski"]
[Result "0-1"]
[WhiteElo "2018"]
[BlackElo "2352"]
[TimeControl "180+1"]
[EndTime "10:55:39 PDT"]
[Termination "konradrutkowski won by resignation"]

1. d4 {[%clk 0:03:00.9]} 1... Nf6 {[%clk 0:02:59.7]} 2. c4 {[%clk 0:03:00]} 2...
g6 {[%clk 0:03:00.3]} 3. Nc3 {[%clk 0:02:59.5]} 3... Bg7 {[%clk 0:03:00.7]} 4.
e4 {[%clk 0:02:59.1]} 4... O-O {[%clk 0:03:01.3]} 5. Nf3 {[%clk 0:02:58.6]} 5...
d6 {[%clk 0:03:01.6]} 6. Be2 {[%clk 0:02:58.4]} 6... e5 {[%clk 0:03:01.8]} 7. d5
{[%clk 0:02:57]} 7... a5 {[%clk 0:03:01.1]} 8. Bg5 {[%clk 0:02:55.9]} 8... h6
{[%clk 0:03:01]} 9. Bh4 {[%clk 0:02:46.7]} 9... Na6 {[%clk 0:03:00.7]} 10. Nd2
{[%clk 0:02:46]} 10... Nc5 {[%clk 0:02:55.4]} 11. Rb1 {[%clk 0:02:44.3]} 11...
Bd7 {[%clk 0:02:52]} 12. b3 {[%clk 0:02:38.9]} 12... Qe8 {[%clk 0:02:49.4]} 13.
O-O {[%clk 0:02:24.3]} 13... Nh7 {[%clk 0:02:48.1]} 14. a3 {[%clk 0:02:20.4]}
14... f5 {[%clk 0:02:47.2]} 15. f3 {[%clk 0:02:20.4]} 15... h5 {[%clk 0:02:43]}
16. Bf2 {[%clk 0:02:17.7]} 16... Bh6 {[%clk 0:02:37.2]} 17. b4 {[%clk
0:02:11.2]} 17... axb4 {[%clk 0:02:37.1]} 18. axb4 {[%clk 0:02:11.1]} 18... Na4
{[%clk 0:02:37.4]} 19. Nxa4 {[%clk 0:02:09.9]} 19... Rxa4 {[%clk 0:02:32.1]} 20.
c5 {[%clk 0:01:51.3]} 20... Ra2 {[%clk 0:02:25.2]} 21. Nc4 {[%clk 0:01:45.6]}
21... Ba4 {[%clk 0:02:14.1]} 22. Qd3 {[%clk 0:01:35]} 22... Bc2 {[%clk
0:02:02.4]} 0-1

[Event "*** SCC Grand Prix: Titled Tuesday Blitz"]
[Site "Chess.com"]
[Date "2020.06.02"]
[Round "5"]
[White "dianamirza"]
[Black "tomasdanada"]
[Result "0-1"]
[WhiteElo "2010"]
[BlackElo "2233"]
[TimeControl "180+1"]
[EndTime "10:55:40 PDT"]
[Termination "tomasdanada won by resignation"]

1. e4 {[%clk 0:03:00.9]} 1... c6 {[%clk 0:02:43.5]} 2. d4 {[%clk 0:03:00]} 2...
d5 {[%clk 0:02:43.8]} 3. exd5 {[%clk 0:03:00.9]} 3... cxd5 {[%clk 0:02:43.3]} 4.
Bd3 {[%clk 0:03:01.8]} 4... Nc6 {[%clk 0:02:43]} 5. c3 {[%clk 0:03:01.2]} 5...
Qc7 {[%clk 0:02:43.5]} 6. h3 {[%clk 0:02:57.4]} 6... Nf6 {[%clk 0:02:41.8]} 7.
Nf3 {[%clk 0:02:56.6]} 7... g6 {[%clk 0:02:41.6]} 8. Bg5 {[%clk 0:02:54.7]} 8...
Bg7 {[%clk 0:02:41.4]} 9. Bh4 {[%clk 0:02:54.6]} 9... Bf5 {[%clk 0:02:39.2]} 10.
Bg3 {[%clk 0:02:54.1]} 10... Qb6 {[%clk 0:02:37.7]} 11. Bxf5 {[%clk 0:02:51.9]}
11... gxf5 {[%clk 0:02:37]} 12. Qc2 {[%clk 0:02:52.2]} 12... Ne4 {[%clk
0:02:31.6]} 13. O-O {[%clk 0:02:45.3]} 13... e6 {[%clk 0:02:24.6]} 14. Nbd2
{[%clk 0:02:43.2]} 14... Rg8 {[%clk 0:02:07.4]} 15. Nxe4 {[%clk 0:02:38.2]}
15... dxe4 {[%clk 0:02:01]} 16. Ne5 {[%clk 0:02:26]} 16... Bxe5 {[%clk
0:01:52.2]} 17. dxe5 {[%clk 0:02:14.9]} 17... O-O-O {[%clk 0:01:49.4]} 18. a4
{[%clk 0:02:08.4]} 18... Rxg3 {[%clk 0:01:31.3]} 19. b4 {[%clk 0:01:55]} 19...
Rdg8 {[%clk 0:01:27.5]} 20. a5 {[%clk 0:01:48]} 20... Rxg2+ {[%clk 0:01:27.3]}
21. Kh1 {[%clk 0:01:47.4]} 21... Qc7 {[%clk 0:01:23.1]} 22. b5 {[%clk
0:01:41.5]} 22... Qxe5 {[%clk 0:01:22.1]} 23. f4 {[%clk 0:01:37]} 23... exf3
{[%clk 0:01:08.6]} 0-1

[Event "*** SCC Grand Prix: Titled Tuesday Blitz"]
[Site "Chess.com"]
[Date "2020.06.02"]
[Round "5"]
[White "TigranMukhutdinov"]
[Black "chesslh19"]
[Result "1-0"]
[WhiteElo "2454"]
[BlackElo "2184"]
[TimeControl "180+1"]
[EndTime "10:55:41 PDT"]
[Termination "TigranMukhutdinov won by resignation"]

1. Nf3 {[%clk 0:03:00.9]} 1... Nf6 {[%clk 0:02:47.4]} 2. g3 {[%clk 0:03:01.1]}
2... e6 {[%clk 0:02:46.9]} 3. Bg2 {[%clk 0:03:00.8]} 3... d5 {[%clk 0:02:47.3]}
4. O-O {[%clk 0:03:01]} 4... Be7 {[%clk 0:02:47.9]} 5. c4 {[%clk 0:03:00.4]}
5... O-O {[%clk 0:02:47.9]} 6. d4 {[%clk 0:03:00.9]} 6... dxc4 {[%clk 0:02:48]}
7. Ne5 {[%clk 0:02:57.3]} 7... Nc6 {[%clk 0:02:48.1]} 8. Bxc6 {[%clk 0:02:57.6]}
8... bxc6 {[%clk 0:02:48.4]} 9. Nxc6 {[%clk 0:02:58.5]} 9... Qe8 {[%clk
0:02:48.3]} 10. Nxe7+ {[%clk 0:02:59.4]} 10... Qxe7 {[%clk 0:02:48.9]} 11. Qc2
{[%clk 0:03:00.3]} 11... c5 {[%clk 0:02:48.2]} 12. Qxc4 {[%clk 0:02:56.1]} 12...
cxd4 {[%clk 0:02:47.8]} 13. Qxd4 {[%clk 0:02:57]} 13... e5 {[%clk 0:02:35.4]}
14. Qh4 {[%clk 0:02:56.3]} 14... Qe6 {[%clk 0:02:34.8]} 15. Bg5 {[%clk
0:02:54.3]} 15... Rb8 {[%clk 0:02:17.9]} 16. Bxf6 {[%clk 0:02:52]} 16... Qxf6
{[%clk 0:02:15]} 17. Qxf6 {[%clk 0:02:51.7]} 17... gxf6 {[%clk 0:02:15.9]} 18.
b3 {[%clk 0:02:49.8]} 18... Ba6 {[%clk 0:02:03]} 19. Nc3 {[%clk 0:02:47.9]}
19... Kg7 {[%clk 0:01:43.5]} 20. Rfc1 {[%clk 0:02:45.3]} 20... Rfd8 {[%clk
0:01:41.9]} 21. Kf1 {[%clk 0:02:43.4]} 21... Rd2 {[%clk 0:01:39.8]} 22. Ke1
{[%clk 0:02:43.3]} 22... Rd7 {[%clk 0:01:28.1]} 23. Ne4 {[%clk 0:02:39.2]} 23...
Rd4 {[%clk 0:01:12.6]} 24. Nc5 {[%clk 0:02:37.1]} 24... Bc8 {[%clk 0:01:07.7]}
25. Rd1 {[%clk 0:02:35]} 25... Rxd1+ {[%clk 0:00:43]} 26. Rxd1 {[%clk
0:02:35.9]} 26... Bf5 {[%clk 0:00:40.4]} 27. f3 {[%clk 0:02:33.4]} 27... h5
{[%clk 0:00:39.7]} 28. e4 {[%clk 0:02:32.7]} 28... Bh3 {[%clk 0:00:36.4]} 29.
Rd6 {[%clk 0:02:31.7]} 29... Rb5 {[%clk 0:00:33.5]} 30. Rd5 {[%clk 0:02:29.2]}
30... Rb7 {[%clk 0:00:23.6]} 1-0

[Event "*** SCC Grand Prix: Titled Tuesday Blitz"]
[Site "Chess.com"]
[Date "2020.06.02"]
[Round "5"]
[White "Twiceblessed"]
[Black "PredragNikac"]
[Result "1-0"]
[WhiteElo "2520"]
[BlackElo "2363"]
[TimeControl "180+1"]
[EndTime "10:55:43 PDT"]
[Termination "Twiceblessed won by resignation"]

1. d4 {[%clk 0:03:00.9]} 1... c5 {[%clk 0:02:59.1]} 2. d5 {[%clk 0:03:00.8]}
2... e6 {[%clk 0:02:59.3]} 3. Nc3 {[%clk 0:02:59.1]} 3... a6 {[%clk 0:02:58.6]}
4. a4 {[%clk 0:02:57.9]} 4... exd5 {[%clk 0:02:56.4]} 5. Nxd5 {[%clk 0:02:57.5]}
5... Nf6 {[%clk 0:02:56.7]} 6. Bg5 {[%clk 0:02:53.2]} 6... Be7 {[%clk
0:02:56.2]} 7. Bxf6 {[%clk 0:02:52.8]} 7... Bxf6 {[%clk 0:02:56]} 8. c3 {[%clk
0:02:53.2]} 8... O-O {[%clk 0:02:55.8]} 9. g3 {[%clk 0:02:50.3]} 9... Nc6 {[%clk
0:02:49]} 10. Bg2 {[%clk 0:02:50.4]} 10... d6 {[%clk 0:02:32.5]} 11. Nh3 {[%clk
0:02:50.1]} 11... b5 {[%clk 0:02:20.3]} 12. axb5 {[%clk 0:02:48]} 12... Bxh3
{[%clk 0:02:19.5]} 13. Bxh3 {[%clk 0:02:47.2]} 13... axb5 {[%clk 0:02:19.1]} 14.
Rxa8 {[%clk 0:02:45]} 14... Qxa8 {[%clk 0:02:18.3]} 15. Nxf6+ {[%clk 0:02:45]}
15... gxf6 {[%clk 0:02:19.2]} 16. Bg2 {[%clk 0:02:44.6]} 16... Qc8 {[%clk
0:02:04.8]} 17. Qxd6 {[%clk 0:02:41.3]} 17... Ne5 {[%clk 0:01:59.5]} 18. Qxf6
{[%clk 0:02:40.3]} 18... Nc4 {[%clk 0:01:53.2]} 19. b3 {[%clk 0:02:22.2]} 19...
Na3 {[%clk 0:01:44.9]} 20. O-O {[%clk 0:02:07.1]} 20... Qd8 {[%clk 0:01:44.4]}
21. Qf5 {[%clk 0:02:02.3]} 21... Qd6 {[%clk 0:01:38]} 22. Be4 {[%clk 0:01:57.3]}
22... Re8 {[%clk 0:01:36.1]} 23. Qxh7+ {[%clk 0:01:55.8]} 23... Kf8 {[%clk
0:01:35.9]} 24. Ra1 {[%clk 0:01:46.8]} 24... b4 {[%clk 0:01:31.3]} 25. cxb4
{[%clk 0:01:47.7]} 25... cxb4 {[%clk 0:01:30.9]} 26. Rc1 {[%clk 0:01:47.2]}
26... Nb5 {[%clk 0:01:21.4]} 27. Bc6 {[%clk 0:01:39.3]} 27... Nc3 {[%clk
0:01:15.1]} 28. Qh8+ {[%clk 0:01:38.2]} 1-0

[Event "*** SCC Grand Prix: Titled Tuesday Blitz"]
[Site "Chess.com"]
[Date "2020.06.02"]
[Round "5"]
[White "BocharovD"]
[Black "Philosopherrr"]
[Result "1-0"]
[WhiteElo "2778"]
[BlackElo "2520"]
[TimeControl "180+1"]
[EndTime "10:55:47 PDT"]
[Termination "BocharovD won by resignation"]

1. c4 {[%clk 0:03:00.9]} 1... Nf6 {[%clk 0:02:59.1]} 2. g3 {[%clk 0:02:55.6]}
2... e5 {[%clk 0:02:52.7]} 3. Bg2 {[%clk 0:02:53.6]} 3... Nc6 {[%clk 0:02:52.7]}
4. Nc3 {[%clk 0:02:53.2]} 4... Bc5 {[%clk 0:02:50.8]} 5. Nf3 {[%clk 0:02:50.5]}
5... d6 {[%clk 0:02:49.2]} 6. O-O {[%clk 0:02:49.4]} 6... O-O {[%clk 0:02:47]}
7. e3 {[%clk 0:02:49.4]} 7... Bg4 {[%clk 0:02:43.5]} 8. h3 {[%clk 0:02:48.7]}
8... Bh5 {[%clk 0:02:42.2]} 9. d3 {[%clk 0:02:45.8]} 9... a6 {[%clk 0:02:39.1]}
10. b3 {[%clk 0:02:44.8]} 10... Re8 {[%clk 0:02:28.9]} 11. Bb2 {[%clk
0:02:44.3]} 11... Ba7 {[%clk 0:02:28.7]} 12. g4 {[%clk 0:02:33.9]} 12... Bg6
{[%clk 0:02:28.3]} 13. Nh4 {[%clk 0:02:33.1]} 13... Ne7 {[%clk 0:02:11.6]} 14.
Bxb7 {[%clk 0:02:29]} 14... Rb8 {[%clk 0:02:11.1]} 15. Bg2 {[%clk 0:02:28.3]}
15... c6 {[%clk 0:02:09]} 16. Rc1 {[%clk 0:02:27.6]} 16... d5 {[%clk 0:02:07.7]}
17. cxd5 {[%clk 0:02:23.6]} 17... cxd5 {[%clk 0:02:04.9]} 18. Ne2 {[%clk
0:02:22]} 18... Qd6 {[%clk 0:01:57.9]} 19. Qd2 {[%clk 0:02:18.4]} 19... Nd7
{[%clk 0:01:53.2]} 20. d4 {[%clk 0:02:00.5]} 20... Rbd8 {[%clk 0:01:33.6]} 21.
dxe5 {[%clk 0:01:41.2]} 21... Nxe5 {[%clk 0:01:29.6]} 22. Nf4 {[%clk 0:01:37]}
22... Be4 {[%clk 0:01:15.6]} 23. Bxe4 {[%clk 0:01:34]} 23... dxe4 {[%clk
0:01:12.5]} 24. Qxd6 {[%clk 0:01:32.8]} 24... Rxd6 {[%clk 0:01:13.1]} 25. Bxe5
{[%clk 0:01:32.2]} 1-0